bitfinex/quotes_BTCUSD_20250408
["timestamp","ask_amount","ask_price","bid_price","bid_amount"]
[1744137183226,0.008,77641.0,77640.0,0.01454085]
[1744137183565,0.01288,77638.0,77629.0,0.12625864]
[1744137183720,0.34,77653.0,77638.0,0.01288]
[1744137183920,0.012877,77656.0,77647.0,0.01454085]
[1744137184145,0.012878,77646.0,77644.0,0.01454085]
[1744137184362,0.270457,77646.0,77644.0,0.01454085]
[1744137184521,0.012881,77632.0,77625.0,0.01454085]
[1744137184870,0.002,77641.0,77638.0,0.27214285]
[1744137185084,0.002,77641.0,77640.0,0.28501885]
[1744137185294,0.002,77641.0,77640.0,0.01454085]
[1744137185537,0.002,77641.0,77640.0,0.02741985]
[1744137185984,0.012878,77646.0,77641.0,0.27213585]
[1744137186225,0.34,77656.0,77638.0,0.00012461]
[1744137186226,0.01007865,77663.0,77661.0,0.257528]
[1744137186504,0.0101483,77665.0,77659.0,0.01454085]
[1744137186722,0.0101483,77665.0,77662.0,0.01454085]
[1744137186965,0.34,77667.0,77664.0,0.01454085]
[1744137187181,0.257509,77667.0,77664.0,0.01454085]
[1744137187392,0.257509,77667.0,77663.0,0.01454085]
[1744137187393,0.012875,77667.0,77663.0,0.01454085]
[1744137187545,0.257517,77665.0,77663.0,0.01454085]
[1744137187760,0.257517,77665.0,77662.0,0.01454085]
[1744137188166,0.352876,77660.0,77659.0,0.002]
[1744137188990,0.012878,77650.0,77643.0,0.012879]
[1744137189204,0.012878,77650.0,77644.0,0.00012461]
[1744137189402,0.34,77654.0,77650.0,0.01454085]
[1744137189765,0.27044,77651.0,77644.0,0.01466546]
[1744137189990,0.004,77660.0,77652.0,0.012877]
[1744137190260,0.004,77660.0,77659.0,0.012876]
[1744137190467,0.012878,77651.0,77643.0,0.003]
[1744137190677,0.270461,77645.0,77643.0,0.003]
[1744137191197,0.352878,77651.0,77645.0,0.01454085]
[1744137191400,0.012878,77646.0,77645.0,0.01454085]
[1744137191659,0.610461,77645.0,77625.0,0.012882]
[1744137191810,0.610461,77645.0,77644.0,0.00212461]
[1744137192227,0.27054,77622.0,77616.0,0.25801748]
[1744137192423,0.012882,77627.0,77619.0,0.012883]
[1744137192627,0.34,77638.0,77616.0,0.012883]
[1744137192628,0.014878,77646.0,77637.0,0.01288]
[1744137192830,0.012879,77644.0,77637.0,0.257607]
[1744137193056,0.27246,77646.0,77644.0,0.01454085]
[1744137193257,0.01300415,77645.0,77644.0,0.01454085]
[1744137193457,0.012882,77626.0,77621.0,0.0094]
[1744137193612,0.61054,77622.0,77621.0,0.0094]
[1744137193814,0.62080652,77622.0,77621.0,0.0094]
[1744137194289,0.62180652,77622.0,77621.0,0.0184]
[1744137194588,0.74806516,77622.0,77621.0,0.00835548]
[1744137195303,0.34,77610.0,77609.0,0.0001677]
[1744137195705,0.352884,77610.0,77609.0,0.0001677]
[1744137196649,0.35598066,77610.0,77609.0,0.0001677]
[1744137196978,0.35698066,77610.0,77609.0,0.0001677]
[1744137197149,0.00409666,77610.0,77609.0,0.02759355]
[1744137197346,0.00409666,77610.0,77609.0,0.15385219]
[1744137197548,0.00409666,77610.0,77609.0,0.156429]
[1744137198040,0.00409666,77610.0,77609.0,0.15642881]
[1744137198209,0.00109666,77610.0,77609.0,0.39874881]
[1744137198413,9.666e-05,77610.0,77609.0,0.39617219]
[1744137198644,0.00209666,77610.0,77609.0,0.39817219]
[1744137198993,9.666e-05,77610.0,77609.0,0.39817219]
[1744137199381,0.00109666,77610.0,77609.0,0.39617219]
[1744137199585,0.00109666,77610.0,77609.0,0.40584212]
[1744137199786,0.00109666,77610.0,77609.0,0.41384212]
[1744137199982,9.666e-05,77610.0,77609.0,0.40584212]
[1744137200452,6.6e-07,77610.0,77609.0,0.41284212]
[1744137201226,0.00100066,77610.0,77609.0,0.41884212]
[1744137201644,0.00100066,77610.0,77609.0,0.41284212]
[1744137201645,6.6e-07,77610.0,77609.0,0.41284212]
[1744137201995,0.013275,77669.0,77620.0,0.34]
[1744137202147,0.012879,77644.0,77636.0,0.13913864]
[1744137202494,0.52169595,77650.0,77635.0,0.01288]
[1744137202495,0.257607,77638.0,77635.0,0.01454085]
[1744137202703,0.012879,77641.0,77634.0,0.01454085]
[1744137202908,0.257593,77642.0,77640.0,0.01454085]
[1744137203110,0.34,77657.0,77634.0,0.01454085]
[1744137203285,0.012878,77646.0,77644.0,0.01454085]
[1744137203483,0.25761,77637.0,77636.0,0.01454085]
[1744137203713,0.27053,77625.0,77620.0,0.24236]
[1744137203887,0.01288,77637.0,77620.0,0.24236]
[1744137203888,0.012879,77640.0,77636.0,0.25761]
[1744137204230,0.012879,77640.0,77633.0,0.27216185]
[1744137204231,0.257609,77637.0,77633.0,0.27216185]
[1744137204388,0.01288,77637.0,77632.0,0.01454085]
[1744137204706,0.257621,77634.0,77631.0,0.27216785]
[1744137204908,0.01288,77636.0,77631.0,0.13913964]
[1744137205205,0.257619,77635.0,77632.0,0.01454085]
[1744137205440,0.0130055,77637.0,77634.0,0.003]
[1744137205711,0.0001255,77637.0,77635.0,0.27215585]
[1744137205871,0.0001255,77637.0,77636.0,0.28503285]
[1744137206071,0.0001255,77637.0,77636.0,0.41129149]
[1744137206779,0.0001255,77637.0,77636.0,0.42115507]
[1744137207005,0.0001255,77637.0,77636.0,0.15066307]
[1744137207322,0.2577345,77637.0,77636.0,0.003]
[1744137207523,0.2706145,77637.0,77636.0,0.003]
[1744137208102,0.2716145,77637.0,77636.0,0.003]
[1744137208303,0.28262097,77637.0,77636.0,0.003]
[1744137208466,0.257647,77626.0,77621.0,0.012883]
[1744137208672,0.01113197,77637.0,77629.0,0.012881]
[1744137208914,0.02401197,77637.0,77636.0,0.004]
[1744137209227,0.270496,77635.0,77632.0,0.01454085]
[1744137209427,0.0021255,77637.0,77636.0,0.27215285]
[1744137209631,0.0021255,77637.0,77636.0,0.15367949]
[1744137209834,0.0021255,77637.0,77636.0,0.41386721]
[1744137210034,0.0021255,77637.0,77636.0,0.39841149]
[1744137210334,0.0021255,77637.0,77636.0,0.41129149]
[1744137210534,0.2726145,77637.0,77636.0,0.01454085]
[1744137210690,0.257646,77626.0,77623.0,0.257654]
[1744137210890,0.012881,77629.0,77619.0,0.012883]
[1744137210891,0.257642,77627.0,77624.0,0.12625864]
[1744137211078,0.012881,77632.0,77624.0,0.012882]
[1744137211274,0.01288,77638.0,77634.0,0.01454085]
[1744137211535,0.0001255,77637.0,77636.0,0.27215285]
[1744137211769,0.0001255,77637.0,77636.0,0.41129149]
[1744137211987,0.2577345,77637.0,77636.0,0.14179949]
[1744137212132,0.0001255,77637.0,77636.0,0.02742085]
[1744137212335,0.0001255,77637.0,77636.0,0.28503285]
[1744137212753,0.0001255,77637.0,77636.0,0.41129149]
[1744137212966,5e-07,77637.0,77636.0,0.47102963]
[1744137213369,5e-07,77637.0,77636.0,0.82049622]
[1744137213742,0.0001682,77663.0,77662.0,0.270402]
[1744137213943,0.0001682,77663.0,77662.0,0.41120149]
[1744137214147,0.00029368,77663.0,77662.0,0.41120149]
[1744137214261,0.25781568,77663.0,77662.0,0.14079949]
[1744137214463,0.00029368,77663.0,77662.0,0.14079949]
[1744137214670,0.01316968,77663.0,77662.0,0.01454085]
[1744137215047,0.01616968,77663.0,77662.0,0.01454085]
[1744137215396,0.01616968,77663.0,77641.0,0.012879]
[1744137215397,0.012878,77649.0,77641.0,0.012879]
[1744137215599,0.012878,77648.0,77642.0,0.12625864]
[1744137215820,0.257586,77645.0,77642.0,0.12625864]
[1744137216024,0.257589,77643.0,77636.0,0.02188]
[1744137216223,0.012879,77644.0,77640.0,0.257598]
[1744137216385,0.012878,77647.0,77639.0,0.257602]
[1744137216604,0.257587,77644.0,77639.0,0.38386064]
[1744137216808,0.012878,77647.0,77640.0,0.01454085]
[1744137216809,0.013879,77645.0,77640.0,0.01454085]
[1744137217228,0.012879,77645.0,77640.0,0.27213885]
[1744137217434,0.012879,77645.0,77641.0,0.01454085]
[1744137217673,0.004,77648.0,77647.0,0.01454085]
[1744137218049,0.257522,77664.0,77647.0,0.15367749]
[1744137218303,0.0001681,77680.0,77662.0,0.02741685]
[1744137218532,0.0001681,77680.0,77662.0,0.15625019]
[1744137218764,0.257514,77666.0,77662.0,0.14079949]
[1744137218964,0.0001681,77680.0,77662.0,0.14079949]
[1744137218965,0.27036,77674.0,77662.0,0.41120149]
[1744137219080,0.0001681,77680.0,77662.0,0.41120149]
[1744137219288,0.25749,77673.0,77662.0,0.39832549]
[1744137219484,0.257518,77665.0,77662.0,0.14079949]
[1744137219742,0.27069168,77663.0,77662.0,0.01454085]
[1744137219896,0.27169168,77663.0,77662.0,0.01454085]
[1744137220100,0.27169168,77663.0,77662.0,0.01654085]
[1744137220368,0.27169168,77663.0,77662.0,0.01454085]
[1744137220757,0.27169168,77663.0,77662.0,0.003]
[1744137221183,0.00029368,77663.0,77662.0,0.01754085]
[1744137221843,0.01316968,77663.0,77662.0,0.01454085]
[1744137221987,0.27069168,77663.0,77662.0,0.01454085]
[1744137222188,0.27469168,77663.0,77662.0,0.01454085]
[1744137222392,0.257573,77648.0,77642.0,0.257592]
[1744137222595,0.257546,77656.0,77652.0,0.257559]
[1744137222794,0.257546,77656.0,77651.0,0.01454085]
[1744137222795,0.257556,77653.0,77651.0,0.01454085]
[1744137223002,0.257556,77653.0,77651.0,0.14079949]
[1744137223198,0.257549,77655.0,77651.0,0.39835949]
[1744137223384,0.257547,77656.0,77653.0,0.01454085]
[1744137223588,0.012876,77662.0,77655.0,0.01454085]
[1744137223787,0.012876,77662.0,77656.0,0.14079949]
[1744137223788,0.257532,77660.0,77656.0,0.14079949]
[1744137224108,0.012876,77661.0,77656.0,0.14079949]
[1744137224316,0.012876,77661.0,77656.0,0.12625864]
[1744137224317,0.270419,77657.0,77656.0,0.12625864]
[1744137224530,0.01288,77639.0,77629.0,0.012881]
[1744137224706,0.012879,77645.0,77639.0,0.257601]
[1744137224906,0.0238167,77647.0,77642.0,0.005]
[1744137225129,0.257589,77643.0,77642.0,0.005]
[1744137225339,0.0109387,77647.0,77643.0,0.01454085]
[1744137225548,0.257595,77641.0,77640.0,0.12625864]
[1744137225873,0.001,77639.0,77634.0,0.01288]
[1744137226015,0.258602,77639.0,77635.0,0.14079949]
[1744137226212,0.257629,77631.0,77630.0,0.009]
[1744137226418,0.27051,77631.0,77630.0,0.009]
[1744137226664,0.61051,77631.0,77630.0,0.009]
[1744137227038,0.61051,77631.0,77609.0,0.0001677]
[1744137227039,0.610537,77623.0,77609.0,0.0001677]
[1744137227242,0.73679564,77623.0,77622.0,7.1e-07]
[1744137227440,0.73679564,77623.0,77609.0,7e-07]
[1744137227441,0.610582,77610.0,77609.0,7e-07]
[1744137229132,0.6106,77605.0,77603.0,1e-06]
[1744137229313,0.270607,77603.0,77602.0,8e-07]
[1744137229512,0.270607,77603.0,77602.0,9.746e-05]
[1744137229513,0.73686564,77603.0,77602.0,9.746e-05]
[1744137230043,0.610645,77592.0,77580.0,0.0001668]
[1744137230278,0.61068,77582.0,77581.0,0.000295]
[1744137230495,0.84052,77582.0,77581.0,0.000295]
[1744137231234,0.012892,77566.0,77561.0,0.0005669]
[1744137231429,0.610746,77563.0,77561.0,0.0005669]
[1744137231857,0.610788,77551.0,77531.0,0.0005678]
[1744137231994,0.610855,77532.0,77531.0,0.0005678]
[1744137232554,0.63476697,77532.0,77531.0,0.0005678]
[1744137232725,0.37680897,77532.0,77531.0,0.0005678]
[1744137233328,0.352897,77532.0,77531.0,0.0025678]
[1744137234164,0.47915564,77532.0,77531.0,0.0025678]
[1744137234303,0.48115564,77532.0,77531.0,0.0025678]
[1744137234503,0.342,77532.0,77531.0,0.0025678]
[1744137235023,0.34,77532.0,77531.0,0.0025678]
[1744137235230,0.342,77532.0,77531.0,0.0005678]
[1744137235435,0.343,77532.0,77531.0,0.0005678]
[1744137235635,0.600958,77532.0,77531.0,0.0005678]
[1744137236046,0.613855,77532.0,77531.0,0.0005678]
[1744137236519,0.613855,77532.0,77531.0,0.13972444]
[1744137236520,0.003,77532.0,77531.0,0.13972444]
[1744137236723,0.003,77532.0,77531.0,0.14136729]
[1744137236922,0.001,77532.0,77531.0,0.14136729]
[1744137237122,0.001,77532.0,77531.0,0.15426529]
[1744137237332,0.006,77532.0,77531.0,0.41222629]
[1744137237757,0.34,77545.0,77537.0,0.012897]
[1744137237953,0.34,77545.0,77534.0,0.012897]
[1744137237954,0.25792,77544.0,77542.0,0.01454085]
[1744137238170,0.257918,77545.0,77543.0,0.14079949]
[1744137238368,0.257911,77546.0,77543.0,0.14079949]
[1744137238580,0.257901,77550.0,77544.0,0.01454085]
[1744137238789,0.25802122,77551.0,77550.0,0.01454085]
[1744137238790,0.00012522,77551.0,77550.0,0.01454085]
[1744137239000,0.27091522,77551.0,77550.0,0.01454085]
[1744137239209,0.27091522,77551.0,77532.0,0.012897]
[1744137239210,0.012896,77543.0,77532.0,0.01454085]
[1744137239377,0.012896,77541.0,77534.0,0.01454085]
[1744137239584,0.257924,77542.0,77536.0,0.01454085]
[1744137239792,0.257921,77544.0,77538.0,0.01454085]
[1744137239946,0.003,77545.0,77544.0,0.012895]
[1744137240158,0.003,77545.0,77544.0,0.14337833]
[1744137240360,0.003,77545.0,77544.0,0.14079949]
[1744137240858,0.003,77545.0,77544.0,0.14337847]
[1744137241059,0.003,77545.0,77539.0,0.012896]
[1744137241060,0.012897,77533.0,77523.0,0.0451]
[1744137241448,0.610855,77532.0,77531.0,0.0005678]
[1744137241560,0.012898,77531.0,77519.0,0.257999]
[1744137241794,0.270901,77519.0,77518.0,0.0001677]
[1744137242026,0.610901,77519.0,77518.0,0.0001677]
[1744137242933,0.61102615,77519.0,77518.0,0.0001677]
[1744137243149,0.34012515,77519.0,77518.0,0.0001677]
[1744137243355,0.00012515,77519.0,77518.0,0.15386719]
[1744137243556,0.00012515,77519.0,77518.0,0.14096719]
[1744137243759,0.61102615,77519.0,77518.0,0.0001677]
[1744137244077,0.00240101,77519.0,77518.0,0.0001677]
[1744137244279,0.00440101,77519.0,77518.0,0.15644718]
[1744137244496,0.01061463,77537.0,77531.0,0.257959]
[1744137244849,0.012899,77524.0,77518.0,0.0001677]
[1744137245020,0.009,77519.0,77518.0,0.01454085]
[1744137245375,0.007,77519.0,77518.0,0.01454085]
[1744137245555,0.277901,77519.0,77518.0,0.01454085]
[1744137246094,0.257995,77521.0,77519.0,0.01454085]
[1744137246434,0.270901,77519.0,77518.0,0.00041805]
[1744137246987,0.257981,77525.0,77518.0,0.00041805]
[1744137247189,0.270886,77524.0,77518.0,0.00041805]
[1744137247385,0.004,77521.0,77519.0,0.01454085]
[1744137247587,0.004,77521.0,77518.0,0.00041805]
[1744137248001,0.34,77541.0,77527.0,0.01454085]
[1744137248177,0.012896,77540.0,77534.0,0.01454085]
[1744137248378,0.012896,77540.0,77528.0,0.012898]
[1744137248379,1.02152,77550.0,77542.0,0.012896]
[1744137248583,0.237013,77557.0,77549.0,0.02743585]
[1744137248782,0.22412,77557.0,77550.0,0.02743485]
[1744137248953,0.22412,77557.0,77552.0,0.01454085]
[1744137249151,0.012893,77558.0,77552.0,0.01454085]
[1744137249376,0.52169595,77562.0,77539.0,0.257932]
[1744137249728,0.012894,77551.0,77544.0,0.01454085]
[1744137249866,0.352894,77551.0,77546.0,0.01454085]
[1744137250210,0.34,77551.0,77549.0,0.27244185]
[1744137250452,0.34,77551.0,77550.0,0.15369349]
[1744137250898,0.012893,77561.0,77550.0,0.15369349]
[1744137250899,0.00012554,77562.0,77557.0,0.02743385]
[1744137251052,0.01108481,77562.0,77561.0,0.28529485]
[1744137251255,0.012895,77547.0,77527.0,0.05873814]
[1744137251438,0.257909,77547.0,77543.0,0.01454085]
[1744137251618,0.257909,77547.0,77544.0,0.12625864]
[1744137251821,0.004,77551.0,77549.0,0.257898]
[1744137252063,0.004,77551.0,77550.0,0.14079949]
[1744137252268,0.004,77551.0,77550.0,0.15369349]
[1744137252464,0.004,77551.0,77550.0,0.1562723]
[1744137252671,0.004,77551.0,77550.0,0.15369349]
[1744137252877,0.004,77551.0,77550.0,0.15627197]
[1744137253241,0.00012554,77562.0,77561.0,0.270754]
[1744137253453,0.01301754,77562.0,77561.0,0.01454085]
[1744137253653,0.01901754,77562.0,77561.0,0.01554085]
[1744137253875,0.35901754,77562.0,77561.0,0.01554085]
[1744137254042,0.01301754,77562.0,77561.0,0.01454085]
[1744137254234,0.35301754,77562.0,77561.0,0.01454085]
[1744137254666,0.34012554,77562.0,77561.0,0.01454085]
[1744137254871,0.00012554,77562.0,77561.0,0.15369249]
[1744137255297,0.00212554,77562.0,77561.0,0.15369249]
[1744137255502,0.00212554,77562.0,77561.0,0.15627096]
[1744137255893,0.00212554,77562.0,77561.0,0.15369249]
[1744137256094,0.00812554,77562.0,77561.0,0.15469249]
[1744137256377,0.00812554,77562.0,77561.0,0.14179949]
[1744137256615,0.00012554,77562.0,77561.0,0.14079949]
[1744137256818,0.00312554,77562.0,77561.0,0.14079949]
[1744137257022,0.00512554,77562.0,77561.0,0.14079949]
[1744137257224,0.00312554,77562.0,77561.0,0.14079949]
[1744137257424,0.00312554,77562.0,77561.0,0.15364471]
[1744137257625,0.00312554,77562.0,77561.0,0.15464471]
[1744137257827,0.00312554,77562.0,77561.0,0.14175171]
[1744137258136,0.00312554,77562.0,77561.0,0.15464471]
[1744137259136,0.00312554,77562.0,77561.0,0.41250571]
[1744137259343,0.61387554,77562.0,77561.0,0.01549307]
[1744137259679,0.34312554,77562.0,77561.0,0.001]
[1744137259881,0.60098354,77562.0,77561.0,0.001]
[1744137260160,0.26098354,77562.0,77561.0,0.001]
[1744137260461,0.27087554,77562.0,77561.0,0.01554085]
[1744137260608,0.00012554,77562.0,77561.0,0.27340185]
[1744137260962,0.00012554,77562.0,77561.0,0.01454085]
[1744137261259,0.27087554,77562.0,77561.0,0.01454085]
[1744137261617,0.00012554,77562.0,77561.0,0.01554085]
[1744137262075,0.00212554,77562.0,77561.0,0.01554085]
[1744137262451,0.01301754,77562.0,77561.0,0.001]
[1744137262630,0.27087554,77562.0,77561.0,0.001]
[1744137262839,0.27487554,77562.0,77561.0,0.001]
[1744137263270,0.27087554,77562.0,77561.0,0.001]
[1744137263511,0.00012554,77562.0,77559.0,0.27240785]
[1744137263670,0.00612554,77562.0,77561.0,0.28529485]
[1744137263871,0.00612554,77562.0,77561.0,0.41155349]
[1744137264067,5.4e-07,77562.0,77561.0,0.41155349]
[1744137264447,0.00300054,77562.0,77561.0,0.41155349]
[1744137264816,0.00300054,77562.0,77561.0,0.47029163]
[1744137264973,0.003,77562.0,77561.0,0.41155349]
[1744137265166,0.004,77562.0,77561.0,0.42055349]
[1744137265381,0.01,77562.0,77561.0,0.42055349]
[1744137265997,0.02398832,77578.0,77577.0,0.28523885]
[1744137266111,0.02398832,77578.0,77577.0,0.41149749]
[1744137266514,0.0004,77579.0,77578.0,0.01454085]
[1744137266720,0.0004,77579.0,77562.0,0.012892]
[1744137266721,0.0004,77579.0,77574.0,0.257817]
[1744137266945,0.0004,77579.0,77578.0,0.270695]
[1744137267158,0.0004,77579.0,77578.0,0.01454085]
[1744137267388,0.271091,77579.0,77578.0,0.01454085]
[1744137267612,0.0004,77579.0,77578.0,0.01454085]
[1744137267851,0.0004,77579.0,77578.0,0.28523585]
[1744137268067,0.0004,77579.0,77578.0,0.41149449]
[1744137268971,0.258201,77579.0,77578.0,0.01454085]
[1744137269200,0.0054,77579.0,77578.0,0.41149449]
[1744137269400,0.0003356,77594.0,77578.0,0.41149449]
[1744137269401,0.34,77591.0,77586.0,0.01454085]
[1744137269693,0.34,77591.0,77590.0,0.01454085]
[1744137269863,0.597761,77591.0,77590.0,0.01454085]
[1744137270073,0.34,77591.0,77588.0,0.01454085]
[1744137270271,0.34,77591.0,77590.0,0.01454085]
[1744137270474,0.35127509,77594.0,77592.0,0.257757]
[1744137270679,0.012885,77604.0,77592.0,0.257757]
[1744137270680,0.01156041,77609.0,77608.0,0.28513085]
[1744137271065,0.01168593,77609.0,77608.0,0.28513085]
[1744137271262,0.01168593,77609.0,77606.0,0.01454085]
[1744137271462,0.270593,77607.0,77606.0,0.01454085]
[1744137271682,0.012887,77597.0,77576.0,0.01289]
[1744137271844,0.597738,77599.0,77574.0,0.01289]
[1744137272060,0.52169595,77606.0,77570.0,0.02271669]
[1744137272061,0.34,77589.0,77584.0,0.257785]
[1744137272258,0.34,77589.0,77581.0,0.012889]
[1744137272259,0.012889,77583.0,77575.0,0.12625864]
[1744137272640,0.34,77586.0,77581.0,0.01454085]
[1744137272854,0.27068,77582.0,77581.0,0.01454085]
[1744137273067,0.27068,77582.0,77533.0,0.0484]
[1744137273068,0.012895,77547.0,77533.0,0.0484]
[1744137273275,0.257943,77537.0,77534.0,0.12625864]
[1744137273491,0.270855,77532.0,77529.0,0.0001678]
[1744137273691,0.63483451,77532.0,77529.0,0.0001678]
[1744137274227,0.63483451,77532.0,77531.0,0.00081805]
[1744137275465,0.36397951,77532.0,77531.0,0.00081805]
[1744137275637,0.36397951,77532.0,77531.0,0.00181805]
[1744137275638,0.348,77532.0,77531.0,0.00181805]
[1744137275835,0.354,77532.0,77531.0,0.00181805]
[1744137276485,0.354,77532.0,77531.0,0.0163589]
[1744137276641,0.354,77532.0,77531.0,0.0292569]
[1744137276840,0.354,77532.0,77531.0,0.0163589]
[1744137277073,0.366897,77532.0,77531.0,0.00181805]
[1744137278072,0.366897,77532.0,77531.0,0.0163589]
[1744137278073,0.354,77532.0,77531.0,0.0163589]
[1744137278583,0.366897,77532.0,77531.0,0.0163589]
[1744137278778,0.354,77532.0,77531.0,0.0163589]
[1744137279604,0.014,77532.0,77531.0,0.41347654]
[1744137279807,0.014,77532.0,77531.0,0.15551554]
[1744137280218,0.014,77532.0,77531.0,0.14261754]
[1744137280667,0.014,77532.0,77531.0,0.15551554]
[1744137280859,0.014,77532.0,77531.0,0.15809502]
[1744137281269,0.014,77532.0,77531.0,0.15551554]
[1744137281500,0.014,77532.0,77531.0,0.16524146]
[1744137281880,0.006,77532.0,77531.0,0.14161754]
[1744137282081,0.011,77532.0,77531.0,0.15451554]
[1744137282692,0.017897,77532.0,77531.0,0.14161754]
[1744137282901,0.357897,77532.0,77531.0,0.00281805]
[1744137283286,0.357897,77532.0,77531.0,0.00081805]
[1744137283486,0.357897,77532.0,77531.0,0.00381805]
[1744137283888,0.005,77532.0,77531.0,0.00081805]
[1744137284088,0.012897,77532.0,77531.0,0.00081805]
[1744137284373,0.018897,77532.0,77531.0,0.00181805]
[1744137284547,0.14015564,77532.0,77531.0,5e-08]
[1744137285070,0.13915564,77532.0,77531.0,5e-08]
[1744137285274,0.35727564,77532.0,77531.0,5e-08]
[1744137285475,0.35727564,77532.0,77531.0,0.27185905]
[1744137285476,0.008,77532.0,77531.0,0.27185905]
[1744137285624,0.008,77532.0,77531.0,0.0155409]
[1744137285823,0.34,77535.0,77532.0,0.01454085]
[1744137286377,0.270817,77543.0,77536.0,0.01454085]
[1744137286378,0.012896,77541.0,77536.0,0.01454085]
[1744137286535,0.02409568,77547.0,77535.0,0.02743785]
[1744137286737,0.25792,77544.0,77539.0,0.01454085]
[1744137287084,0.012896,77540.0,77539.0,0.01454085]
[1744137287278,0.004,77535.0,77534.0,0.01454085]
[1744137287457,0.257938,77538.0,77534.0,0.15369649]
[1744137287663,0.257935,77539.0,77535.0,0.01454085]
[1744137287979,0.270834,77538.0,77537.0,0.01454085]
[1744137288282,0.270841,77536.0,77535.0,0.01454085]
[1744137288491,0.257958,77532.0,77531.0,5e-08]
[1744137288681,0.257953,77534.0,77531.0,5e-08]
[1744137288982,0.270855,77532.0,77531.0,5e-08]
[1744137289529,0.257954,77533.0,77531.0,0.0145409]
[1744137289737,0.34,77534.0,77531.0,0.0145409]
[1744137289943,0.343,77534.0,77531.0,5e-08]
[1744137290184,0.343,77534.0,77533.0,0.01454085]
[1744137290503,0.597951,77534.0,77533.0,0.01454085]
[1744137290916,0.34,77534.0,77533.0,0.27249485]
[1744137291068,0.34,77538.0,77535.0,0.257947]
[1744137291273,0.352896,77538.0,77533.0,0.01454085]
[1744137291482,0.34,77538.0,77535.0,0.257947]
[1744137291666,0.597938,77538.0,77535.0,0.01454085]
[1744137291861,0.012896,77539.0,77535.0,0.01454085]
[1744137292060,0.257938,77538.0,77535.0,0.01454085]
[1744137292380,0.257944,77537.0,77534.0,0.01454085]
[1744137292588,0.257943,77537.0,77534.0,0.01454085]
[1744137292821,0.346,77538.0,77537.0,0.28537885]
[1744137292982,0.346,77538.0,77537.0,0.27248185]
[1744137293182,0.346,77538.0,77537.0,0.28537885]
[1744137293593,0.603938,77538.0,77537.0,0.01454085]
[1744137293789,0.346,77538.0,77537.0,0.01454085]
[1744137294102,0.616834,77538.0,77537.0,0.01454085]
[1744137294305,0.270855,77532.0,77529.0,0.0001678]
[1744137294933,0.610855,77532.0,77529.0,0.0001678]
[1744137295309,0.63480508,77532.0,77529.0,0.0001678]
[1744137296074,0.63980508,77532.0,77529.0,0.0001678]
[1744137296292,0.610862,77530.0,77529.0,0.00012785]
[1744137296475,0.73712064,77530.0,77529.0,0.00012785]
[1744137296879,0.76107072,77530.0,77529.0,0.00012785]
[1744137297081,0.63481208,77530.0,77529.0,0.00012785]
[1744137298383,0.37095008,77530.0,77529.0,0.00112785]
[1744137298571,0.03095008,77530.0,77529.0,0.2865337]
[1744137299112,0.03995008,77530.0,77529.0,0.2865337]
[1744137299516,0.03995008,77530.0,77529.0,0.41279234]
[1744137299639,0.03295008,77530.0,77529.0,0.41179234]
[1744137299839,0.009,77530.0,77529.0,0.41179234]
[1744137300095,0.01,77530.0,77529.0,0.41179234]
[1744137300300,0.001,77530.0,77529.0,0.0146687]
[1744137300461,0.271862,77530.0,77529.0,0.00012785]
[1744137300666,0.615862,77530.0,77529.0,0.00012785]
[1744137301039,0.6358823,77530.0,77529.0,0.00012785]
[1744137301259,0.6348823,77530.0,77529.0,0.00012785]
[1744137301464,0.6358823,77530.0,77529.0,0.00012785]
[1744137301661,0.6358823,77530.0,77529.0,0.00112785]
[1744137301864,0.6348823,77530.0,77529.0,0.00112785]
[1744137302083,0.610862,77530.0,77529.0,0.00012785]
[1744137302306,0.616862,77530.0,77529.0,0.00012785]
[1744137302674,0.004,77530.0,77529.0,0.01302585]
[1744137302875,0.004,77530.0,77529.0,0.41437214]
[1744137303098,0.009,77530.0,77529.0,0.42125345]
[1744137303686,0.009,77530.0,77529.0,0.41179234]
[1744137304090,0.005,77530.0,77529.0,0.41179234]
[1744137304553,0.00041797,77532.0,77531.0,0.270859]
[1744137304693,0.00041797,77532.0,77531.0,0.41165849]
[1744137304885,0.02453969,77532.0,77531.0,0.41165849]
[1744137305488,0.270862,77530.0,77529.0,0.00312785]
[1744137305705,0.270862,77530.0,77529.0,0.00012785]
[1744137306742,0.610862,77530.0,77529.0,0.00012785]
[1744137306998,0.610862,77530.0,77499.0,0.0001679]
[1744137306999,0.270956,77503.0,77499.0,0.0001679]
[1744137307523,0.610956,77503.0,77499.0,0.0001679]
[1744137308261,0.34,77503.0,77502.0,0.2711267]
[1744137308454,0.25847171,77503.0,77502.0,0.0001677]
[1744137308668,0.27137371,77503.0,77502.0,0.0001677]
[1744137309022,0.02560044,77503.0,77502.0,0.0001677]
[1744137309365,0.27137371,77503.0,77502.0,0.0001677]
[1744137310335,0.27337371,77503.0,77502.0,0.0001677]
[1744137310967,0.27137371,77503.0,77502.0,0.0001677]
[1744137311289,0.01559412,77503.0,77502.0,0.2711267]
[1744137311449,0.01559412,77503.0,77502.0,0.28566755]
[1744137311652,0.00441771,77503.0,77502.0,0.41192619]
[1744137311848,0.012899,77523.0,77518.0,0.02744085]
[1744137312078,0.012899,77523.0,77522.0,0.27089]
[1744137312079,4.177e-05,77523.0,77522.0,0.27089]
[1744137312274,4.177e-05,77523.0,77522.0,0.28543085]
[1744137312709,0.01294077,77523.0,77513.0,0.012901]
[1744137312865,0.258023,77513.0,77509.0,0.01454085]
[1744137313065,0.270911,77516.0,77513.0,0.01454085]
[1744137313303,0.258011,77516.0,77513.0,0.01454085]
[1744137313469,0.258011,77516.0,77509.0,0.258033]
[1744137313470,0.258022,77513.0,77509.0,0.01454085]
[1744137313671,0.012901,77513.0,77509.0,0.01454085]
[1744137313902,0.012901,77512.0,77507.0,0.01454085]
[1744137314103,0.012901,77512.0,77471.0,0.0504]
[1744137314104,0.610956,77503.0,77486.0,0.0002677]
[1744137314707,0.816276,77503.0,77486.0,0.0002677]
[1744137314904,0.610967,77500.0,77486.0,0.0002677]
[1744137315104,0.73722564,77500.0,77486.0,0.0002677]
[1744137316144,0.610974,77498.0,77497.0,8e-07]
[1744137316348,0.611012,77487.0,77486.0,0.0002677]